fUSD/lending_fUSD_20250916
["ID","MTS","AMOUNT","RATE_DAILY","PERIOD"]
[385812833,1758055870587,-400.0,0.00030684,6]
[385812834,1758055870597,-400.0,0.00030684,6]
[385812835,1758055870606,-400.0,0.00030684,6]
[385812836,1758055870616,-400.0,0.00030684,6]
[385812837,1758055870625,-400.0,0.00030684,6]
[385812838,1758055870635,-400.0,0.00030684,6]
[385812839,1758055870645,-448.17,0.00030684,6]
[385812840,1758055870654,-400.0,0.00030684,6]
[385812841,1758055870664,-439.12,0.00030684,6]
[385812842,1758055870673,-400.0,0.00030684,6]
[385812843,1758055870683,-400.0,0.00030684,6]
[385812844,1758055870693,-188.53749785,0.00030684,6]
[385812845,1758055870703,-901.58,0.00030684,6]
[385812846,1758055870714,-400.0,0.00030684,6]
[385812847,1758055870726,-361.78242918,0.00030684,6]
[385812848,1758055870736,-568.53,0.00030684,6]
[385812849,1758055870746,-400.0,0.00030684,6]
[385812850,1758055870755,-400.0,0.00030684,6]
[385812851,1758055870765,-400.0,0.00030684,6]
[385812852,1758055870774,-406.04069458,0.00030684,6]
[385812853,1758055870784,-406.37328689,0.00030684,6]
[385812854,1758055870793,-400.0,0.00030684,6]
[385812855,1758055870802,-400.0,0.00030684,6]
[385812856,1758055870812,-583.89,0.00030684,6]
[385812857,1758055870821,-400.0,0.00030684,6]
[385812858,1758055870831,-400.0,0.00030684,6]
[385812859,1758055870840,-400.0,0.00030684,6]
[385812860,1758055870849,-400.0,0.00030684,2]
[385812861,1758055870858,-400.0,0.00030684,6]
[385812862,1758055870868,-400.0,0.00030684,6]
[385812863,1758055870877,-405.42587165,0.00030684,6]
[385812864,1758055870886,-400.0,0.00030684,6]
[385812865,1758055870896,-400.0,0.00030684,6]
[385812866,1758055870906,-400.0,0.00030684,6]
[385812867,1758055870915,-202.38236443,0.00030684,6]
[385812868,1758055870924,-400.0,0.00030684,6]
[385812869,1758055870934,-614.16,0.00030684,6]
[385812870,1758055870943,-400.0,0.00030684,6]
[385812871,1758055870952,-400.0,0.00030684,6]
[385812872,1758055870961,-508.41443545,0.00030684,6]
[385812873,1758055870970,-400.0,0.00030684,6]
[385812874,1758055870979,-677.09,0.00030684,6]
[385812875,1758055870989,-400.0,0.00030684,6]
[385812876,1758055870999,-400.0,0.00030684,6]
[385812877,1758055871008,-400.0,0.00030684,6]
[385812878,1758055871017,-400.0,0.00030684,6]
[385812879,1758055871026,-442.39,0.00030684,6]
[385812880,1758055871035,-437.71,0.00030684,6]
[385812881,1758055871044,-771.61,0.00030684,6]
[385812882,1758055871053,-400.0,0.00030684,6]
[385812883,1758055871062,-400.0,0.00030684,6]
[385812884,1758055871072,-933.64,0.00030684,6]
[385812885,1758055871082,-400.0,0.00030684,6]
[385812886,1758055871091,-400.0,0.00030684,6]
[385812887,1758055871100,-400.0,0.00030684,6]
[385812888,1758055871110,-400.0,0.00030684,6]
[385812889,1758055871119,-555.07,0.00030684,6]
[385812890,1758055871128,-400.0,0.00030684,6]
[385812891,1758055871137,-400.0,0.00030684,6]
[385812892,1758055871147,-400.0,0.00030684,6]
[385812893,1758055871156,-400.0,0.00030684,6]
[385812894,1758055871165,-438.36,0.00030684,6]
[385812895,1758055871175,-400.0,0.00030684,6]
[385812896,1758055871184,-406.4705077,0.00030684,6]
[385812897,1758055871193,-400.0,0.00030684,6]
[385812898,1758055871203,-400.0,0.00030684,6]
[385812899,1758055871212,-584.99,0.00030684,6]
[385812900,1758055871221,-400.0,0.00030684,6]
[385812901,1758055871230,-400.0,0.00030684,6]
[385812902,1758055871242,-433.4,0.00030684,6]
[385812903,1758055871251,-400.0,0.00030684,6]
[385812904,1758055871261,-407.16231329,0.00030684,6]
[385812905,1758055871270,-400.0,0.00030684,6]
[385812906,1758055871279,-400.0,0.00030684,6]
[385812907,1758055871289,-400.0,0.00030684,6]
[385812908,1758055871298,-400.22,0.00030684,6]
[385812909,1758055871307,-400.0,0.00030684,6]
[385812910,1758055871316,-400.0,0.00030684,6]
[385812911,1758055871326,-400.0,0.00030684,6]
[385812912,1758055871337,-400.0,0.00030684,6]
[385812913,1758055871347,-400.0,0.00030684,6]
[385812914,1758055871356,-400.0,0.00030684,6]
[385812915,1758055871365,-400.0,0.00030684,6]
[385812916,1758055871374,-400.0,0.00030684,6]
[385812917,1758055871384,-400.0,0.00030684,6]
[385812918,1758055871393,-400.0,0.00030684,6]
[385812919,1758055871402,-400.0,0.00030684,6]
[385812920,1758055871412,-400.0,0.00030684,6]
[385812921,1758055871421,-815.51,0.00030684,6]
[385812922,1758055871431,-400.0,0.00030684,6]
[385812923,1758055871440,-400.0,0.00030684,6]
[385812924,1758055871450,-400.0,0.00030684,6]
[385812925,1758055871459,-400.0,0.00030684,6]
[385812926,1758055871468,-400.0,0.00030684,6]
[385812927,1758055871477,-667.42,0.00030684,6]
[385812928,1758055871487,-454.53,0.00030684,6]
[385812929,1758055871496,-512.12,0.00030684,6]
[385812930,1758055871506,-400.0,0.00030684,6]
[385812931,1758055871515,-400.0,0.00030684,6]
[385812932,1758055871525,-219.79366896,0.00030684,6]
[385812933,1758055871534,-400.0,0.00030684,6]
[385812934,1758055871543,-400.0,0.00030684,6]
[385812935,1758055871553,-400.0,0.00030684,6]
[385812936,1758055871562,-400.0,0.00030684,6]
[385812937,1758055871571,-400.0,0.00030684,6]
[385812938,1758055871581,-461.69,0.00030684,6]
[385812939,1758055871590,-400.0,0.00030684,6]
[385812940,1758055871599,-977.81,0.00030684,6]
[385812941,1758055871609,-487.61,0.00030684,6]
[385812942,1758055871618,-493.83,0.00030684,6]
[385812943,1758055871627,-400.0,0.00030684,6]
[385812944,1758055871636,-400.0,0.00030684,6]
[385812945,1758055871646,-400.0,0.00030684,6]
[385812946,1758055871655,-400.0,0.00030684,6]
[385812947,1758055871666,-400.0,0.00030684,6]
[385812948,1758055871675,-439.87,0.00030684,6]
[385812949,1758055871684,-400.0,0.00030684,6]
[385812950,1758055871695,-572.71,0.00030684,6]
[385812951,1758055871705,-400.0,0.00030684,6]
[385812952,1758055871715,-400.0,0.00030684,6]
[385812953,1758055871725,-601.77,0.00030684,6]
[385812954,1758055871735,-504.8,0.00030684,6]
[385812955,1758055871745,-400.0,0.00030684,6]
[385812956,1758055871755,-400.0,0.00030684,6]
[385812957,1758055871765,-400.0,0.00030684,6]
[385812958,1758055871774,-400.0,0.00030684,6]
[385812959,1758055871784,-443.72719954,0.00030684,6]
[385812960,1758055871794,-400.0,0.00030684,6]
[385812961,1758055871803,-412.65,0.00030684,6]
[385812962,1758055871813,-400.0,0.00030684,6]
[385812963,1758055871823,-400.0,0.00030684,6]
[385812964,1758055871833,-496.77,0.00030684,6]
[385812965,1758055871842,-400.0,0.00030684,6]
[385812966,1758055871854,-400.0,0.00030684,6]
[385812967,1758055871865,-400.0,0.00030684,6]
[385812968,1758055871874,-400.0,0.00030684,6]
[385812969,1758055871883,-400.0,0.00030684,6]
[385812970,1758055871893,-400.0,0.00030684,6]
[385812971,1758055871902,-1174.65,0.00030684,6]
[385812972,1758055871912,-400.0,0.00030684,6]
[385812973,1758055871923,-400.0,0.00030684,6]
[385812974,1758055871934,-400.0,0.00030684,6]
[385812975,1758055871944,-482.53,0.00030684,6]
[385812976,1758055871953,-400.0,0.00030684,6]
[385812977,1758055871962,-400.0,0.00030684,6]
[385812978,1758055871972,-533.01034117,0.00030684,6]
[385812979,1758055871981,-512.06,0.00030684,6]
[385812980,1758055871991,-400.0,0.00030684,6]
[385812981,1758055872001,-552.22,0.00030684,6]
[385812982,1758055872010,-400.0,0.00030684,6]
[385812983,1758055872020,-400.0,0.00030684,6]
[385812984,1758055872032,-404.94,0.00030684,6]
[385812985,1758055872042,-400.0,0.00030684,6]
[385812986,1758055872052,-400.0,0.00030684,6]
[385812987,1758055872063,-829.35,0.00030684,5]
[385812988,1758055872072,-400.0,0.00030684,6]
[385812989,1758055872081,-400.0,0.00030684,6]
[385812990,1758055872090,-447.21,0.00030684,6]
[385812991,1758055872099,-400.0,0.00030684,6]
[385812992,1758055872110,-438.39774355,0.00030684,6]
[385812993,1758055872121,-400.0,0.00030684,6]
[385812994,1758055872130,-1534.55,0.00030684,6]
[385812995,1758055872139,-400.0,0.00030684,6]
[385812996,1758055872149,-400.0,0.00030684,6]
[385812997,1758055872159,-582.44,0.00030684,6]
[385812998,1758055872170,-439.97,0.00030684,6]
[385812999,1758055872181,-400.0,0.00030684,6]
[385813000,1758055872190,-520.07,0.00030684,6]
[385813001,1758055872200,-436.33,0.00030684,6]
[385813002,1758055872209,-476.19,0.00030684,6]
[385813003,1758055872219,-2652.66,0.00030684,6]
[385813004,1758055872230,-400.0,0.00030684,6]
[385813005,1758055872241,-400.0,0.00030684,6]
[385813006,1758055872250,-400.0,0.00030684,6]
[385813007,1758055872260,-243.01405759,0.00030684,6]
[385813008,1758055872271,-400.0,0.00030684,6]
[385813009,1758055872280,-851.33,0.00030684,6]
[385813010,1758055872289,-400.0,0.00030684,6]
[385813011,1758055872299,-441.81413803,0.00030684,6]
[385813012,1758055872308,-400.0,0.00030684,6]
[385813013,1758055872317,-400.0,0.00030684,6]
[385813014,1758055872327,-400.0,0.00030684,6]
[385813015,1758055872338,-400.0,0.00030684,6]
[385813016,1758055872347,-400.0,0.00030684,6]
[385813017,1758055872357,-400.0,0.00030684,6]
[385813018,1758055872367,-400.0,0.00030684,6]
[385813019,1758055872377,-400.0,0.00030684,6]
[385813020,1758055872386,-712.67,0.00030684,6]
[385813021,1758055872395,-606.89,0.00030684,6]
[385813022,1758055872404,-441.66,0.00030684,6]
[385813023,1758055872414,-400.0,0.00030684,6]
[385813024,1758055872423,-400.0,0.00030684,6]
[385813025,1758055872433,-403.96770112,0.00030684,6]
[385813026,1758055872442,-400.0,0.00030684,6]
[385813027,1758055872451,-400.0,0.00030684,6]
[385813028,1758055872461,-400.0,0.00030684,6]
[385813029,1758055872471,-400.0,0.00030684,6]
[385813030,1758055872481,-589.15,0.00030684,6]
[385813031,1758055872492,-400.0,0.00030684,6]
[385813032,1758055872501,-491.06,0.00030684,6]
[385813033,1758055872512,-400.0,0.00030684,6]
[385813034,1758055872522,-643.54,0.00030684,6]
[385813035,1758055872532,-400.0,0.00030684,6]
[385813036,1758055872542,-531.4,0.00030684,6]
[385813037,1758055872551,-400.0,0.00030684,6]
[385813038,1758055872561,-716.44,0.00030684,6]
[385813039,1758055872570,-441.09,0.00030684,6]
[385813040,1758055872579,-498.56,0.00030684,6]
[385813041,1758055872589,-400.0,0.00030684,6]
[385813042,1758055872599,-400.0,0.00030684,6]
[385813043,1758055872609,-692.32,0.00030684,6]
[385813044,1758055872618,-3193.35,0.00030684,6]
[385813045,1758055872628,-400.0,0.00030684,6]
[385813046,1758055872638,-400.0,0.00030684,6]
[385813047,1758055872647,-559.39,0.00030684,6]
[385813048,1758055872657,-994.07,0.00030684,6]
[385813049,1758055872666,-400.0,0.00030684,6]
[385813050,1758055872675,-430.31,0.00030684,6]
[385813051,1758055872686,-412.75,0.00030684,6]
[385813052,1758055872695,-414.15,0.00030684,6]
[385813053,1758055872704,-400.0,0.00030684,6]
[385813054,1758055872713,-449.1,0.00030684,6]
[385813055,1758055872722,-739.18,0.00030684,6]
[385813056,1758055872731,-400.0,0.00030684,6]
[385813057,1758055872741,-400.0,0.00030684,6]
[385813058,1758055872750,-400.0,0.00030684,6]
[385813059,1758055872760,-400.0,0.00030684,6]
[385813060,1758055872769,-1559.48,0.00030684,6]
[385813061,1758055872778,-400.0,0.00030684,6]
[385813062,1758055872787,-400.0,0.00030684,6]
[385813063,1758055872797,-400.0,0.00030684,6]
[385813064,1758055872806,-400.0,0.00030684,6]
[385813065,1758055872816,-400.0,0.00030684,6]
[385813066,1758055872825,-400.0,0.00030684,6]
[385813067,1758055872835,-400.0,0.00030684,6]
[385813068,1758055872844,-400.0,0.00030684,6]
[385813069,1758055872853,-400.0,0.00030684,6]
[385813070,1758055872863,-542.77,0.00030684,6]
[385813071,1758055872872,-400.0,0.00030684,6]
[385813072,1758055872881,-400.0,0.00030684,6]
[385813073,1758055872890,-400.0,0.00030684,6]
[385813074,1758055872899,-400.0,0.00030684,6]
[385813075,1758055872909,-400.0,0.00030684,6]
[385813076,1758055872918,-400.0,0.00030684,6]
[385813077,1758055872927,-400.0,0.00030684,6]
[385813078,1758055872937,-582.39,0.00030684,6]
[385813079,1758055872947,-479.79,0.00030684,6]
[385813080,1758055872957,-400.0,0.00030684,6]
[385813081,1758055872966,-532.53,0.00030684,6]
[385813082,1758055872976,-400.0,0.00030684,6]
[385813083,1758055872985,-400.0,0.00030684,6]
[385813084,1758055872995,-619.12,0.00030684,6]
[385813085,1758055873005,-400.0,0.00030684,6]
[385813086,1758055873014,-3974.25,0.00030684,6]
[385813087,1758055873025,-441.55,0.00030684,6]
[385813088,1758055873035,-400.0,0.00030684,6]
[385813089,1758055873045,-563.92,0.00030684,6]
[385813090,1758055873054,-400.0,0.00030684,6]
[385813091,1758055873065,-548.54,0.00030684,6]
[385813092,1758055873075,-400.0,0.00030684,6]
[385813093,1758055873085,-400.0,0.00030684,6]
[385813094,1758055873095,-421.81,0.00030684,6]
[385813095,1758055873105,-400.0,0.00030684,6]
[385813096,1758055873114,-400.0,0.00030684,6]
[385813097,1758055873123,-400.0,0.00030684,6]
[385813098,1758055873132,-400.0,0.00030684,6]
[385813099,1758055873142,-400.0,0.00030684,6]
[385813100,1758055873152,-518.36,0.00030684,6]
[385813101,1758055873162,-400.0,0.00030684,6]
[385813102,1758055873171,-510.5,0.00030684,6]
[385813103,1758055873180,-400.0,0.00030684,6]
[385813104,1758055873190,-400.0,0.00030684,6]
[385813105,1758055873199,-701.31,0.00030684,6]
[385813106,1758055873210,-400.0,0.00030684,6]
[385813107,1758055873220,-400.0,0.00030684,6]
[385813108,1758055873229,-400.0,0.00030684,6]
[385813109,1758055873239,-240.04891102,0.00030684,6]
[385813110,1758055873249,-400.0,0.00030684,6]
[385813111,1758055873258,-400.0,0.00030684,6]
[385813112,1758055873267,-400.0,0.00030684,6]
[385813113,1758055873276,-409.2573191,0.00030684,6]
[385813114,1758055873287,-400.0,0.00030684,6]
[385813115,1758055873296,-415.13,0.00030684,6]
[385813116,1758055873306,-283.05773262,0.00030684,6]
[385813117,1758055873315,-400.0,0.00030684,6]
[385813118,1758055873325,-636.08,0.00030684,6]
[385813119,1758055873335,-400.0,0.00030684,6]
[385813120,1758055873347,-400.0,0.00030684,6]
[385813121,1758055873357,-400.0,0.00030684,6]
[385813122,1758055873367,-405.27548583,0.00030684,6]
[385813123,1758055873376,-509.49,0.00030684,6]
[385813124,1758055873386,-400.0,0.00030684,6]
[385813125,1758055873397,-400.0,0.00030684,6]
[385813126,1758055873406,-501.58,0.00030684,6]
[385813127,1758055873419,-400.0,0.00030684,6]
[385813128,1758055873429,-400.0,0.00030684,6]
[385813129,1758055873438,-400.0,0.00030684,6]
[385813130,1758055873449,-400.0,0.00030684,6]
[385813131,1758055873458,-1169.89,0.00030684,6]
[385813132,1758055873467,-400.0,0.00030684,6]
[385813133,1758055873477,-400.0,0.00030684,6]
[385813134,1758055873486,-400.0,0.00030684,6]
[385813135,1758055873496,-400.0,0.00030684,6]
[385813136,1758055873505,-400.0,0.00030684,6]
[385813137,1758055873515,-400.0,0.00030684,6]
[385813138,1758055873524,-420.32,0.00030684,6]
[385813139,1758055873533,-400.0,0.00030684,6]
[385813140,1758055873542,-400.0,0.00030684,6]
[385813141,1758055873552,-400.0,0.00030684,6]
[385813142,1758055873561,-400.0,0.00030684,6]
[385813143,1758055873570,-151.0,0.00030684,4]
[385813144,1758055873580,-400.0,0.00030684,6]
[385813145,1758055873590,-400.0,0.00030684,6]
[385813146,1758055873599,-400.0,0.00030684,6]
[385813147,1758055873608,-400.0,0.00030684,6]
[385813148,1758055873617,-400.0,0.00030684,6]
[385813149,1758055873627,-400.0,0.00030684,6]
[385813150,1758055873636,-400.0,0.00030684,6]
[385813151,1758055873646,-400.0,0.00030684,6]
[385813152,1758055873655,-400.0,0.00030684,6]
[385813153,1758055873664,-400.0,0.00030684,6]
[385813154,1758055873673,-515.27,0.00030684,6]
[385813155,1758055873683,-400.0,0.00030684,6]
[385813156,1758055873692,-625.17,0.00030684,6]
[385813157,1758055873701,-400.0,0.00030684,6]
[385813158,1758055873710,-400.0,0.00030684,6]
[385813159,1758055873721,-400.0,0.00030684,6]
[385813160,1758055873855,-400.0,0.00030684,6]
[385813161,1758055873865,-439.62,0.00030684,6]
[385813162,1758055873877,-400.0,0.00030684,6]
[385813163,1758055873888,-400.0,0.00030684,6]
[385813164,1758055873898,-511.44,0.00030684,6]
[385813165,1758055873911,-400.0,0.00030684,6]
[385813166,1758055873922,-735.9,0.00030684,6]
[385813167,1758055873932,-1007.96,0.00030684,6]
[385813168,1758055873941,-400.0,0.00030684,6]
[385813169,1758055873951,-400.0,0.00030684,6]
[385813170,1758055873960,-400.0,0.00030684,6]
[385813171,1758055873969,-400.0,0.00030684,6]
[385813172,1758055873979,-308.64316575,0.00030684,6]
[385813173,1758055873988,-400.0,0.00030684,6]
[385813174,1758055873997,-457.27,0.00030684,6]
[385813175,1758055874007,-400.0,0.00030684,6]
[385813176,1758055874018,-539.99,0.00030684,6]
[385813177,1758055874028,-468.84,0.00030684,6]
[385813178,1758055874038,-400.0,0.00030684,6]
[385813179,1758055874050,-592.52,0.00030684,6]
[385813180,1758055874061,-414.16,0.00030684,6]
[385813181,1758055874071,-431.48,0.00030684,6]
[385813182,1758055874082,-400.0,0.00030684,6]
[385813183,1758055874091,-400.0,0.00030684,6]
[385813184,1758055874101,-400.0,0.00030684,6]
[385813185,1758055874110,-459.27,0.00030684,6]
[385813186,1758055874120,-400.0,0.00030684,6]
[385813187,1758055874130,-400.0,0.00030684,6]
[385813188,1758055874140,-952.83,0.00030684,6]
[385813189,1758055874151,-946.11,0.00030684,6]
[385813190,1758055874162,-714.98,0.00030684,6]
[385813191,1758055874171,-347.17556384,0.00030684,6]
[385813192,1758055874181,-400.0,0.00030684,6]
[385813193,1758055874190,-502.49,0.00030684,6]
[385813194,1758055874199,-2413.87,0.00030684,6]
[385813195,1758055874210,-525.48,0.00030684,6]
[385813196,1758055874220,-406.6509727,0.00030684,6]
[385813197,1758055874229,-400.0,0.00030684,6]
[385813198,1758055874241,-400.0,0.00030684,6]
[385813199,1758055874251,-400.0,0.00030684,6]
[385813200,1758055874261,-400.0,0.00030684,6]
[385813201,1758055874271,-400.0,0.00030684,6]
[385813202,1758055874280,-528.5,0.00030684,6]
[385813203,1758055874289,-485.03,0.00030684,6]
[385813204,1758055874298,-499.88,0.00030684,6]
[385813205,1758055874307,-404.72081217,0.00030684,6]
[385813206,1758055874317,-634.51,0.00030684,6]
[385813207,1758055874326,-885.28,0.00030684,6]
[385813208,1758055874339,-300.0,0.00030684,6]
[385813209,1758055874351,-400.0,0.00030684,6]
[385813210,1758055874361,-400.0,0.00030684,6]
[385813211,1758055874370,-632.16,0.00030684,6]
[385813212,1758055874380,-400.0,0.00030684,6]
[385813213,1758055874391,-400.0,0.00030684,6]
[385813214,1758055874400,-400.0,0.00030684,6]
[385813215,1758055874410,-472.66,0.00030684,6]
[385813216,1758055874421,-187.02147526,0.00030684,6]
[385813217,1758055874430,-989.12,0.00030684,6]
[385813218,1758055874445,-458.62,0.00030684,6]
[385813219,1758055874455,-400.0,0.00030684,6]
[385813220,1758055874464,-400.0,0.00030684,6]
[385813221,1758055874474,-432.05,0.00030684,6]
[385813222,1758055874484,-400.0,0.00030684,6]
[385813223,1758055874493,-400.0,0.00030684,6]
[385813224,1758055874503,-400.0,0.00030684,6]
[385813225,1758055874512,-400.0,0.00030684,6]
[385813226,1758055874522,-566.3,0.00030684,6]
[385813227,1758055874531,-403.92,0.00030684,6]
[385813228,1758055874540,-1276.01,0.00030684,6]
[385813229,1758055874550,-400.0,0.00030684,6]
[385813230,1758055874559,-400.0,0.00030684,6]
[385813231,1758055874568,-400.0,0.00030684,6]
[385813232,1758055874578,-458.72781131,0.00030684,6]
[385813233,1758055874587,-400.0,0.00030684,6]
[385813234,1758055874597,-400.0,0.00030684,6]
[385813235,1758055874606,-400.0,0.00030684,6]
[385813236,1758055874615,-418.98,0.00030684,6]
[385813237,1758055874625,-400.0,0.00030684,6]
[385813238,1758055874635,-400.0,0.00030684,6]
[385813239,1758055874644,-2326.43,0.00030684,6]
[385813240,1758055874653,-409.32938124,0.00030684,6]
[385813241,1758055874663,-538.32,0.00030684,6]
[385813242,1758055874674,-400.0,0.00030684,6]
[385813243,1758055874683,-579.99,0.00030684,6]
[385813244,1758055874693,-400.0,0.00030684,6]
[385813245,1758055874703,-400.0,0.00030684,6]
[385813246,1758055874712,-400.0,0.00030684,6]
[385813247,1758055874722,-867.79,0.00030684,6]
[385813248,1758055874732,-400.0,0.00030684,6]
[385813249,1758055874741,-400.0,0.00030684,6]
[385813250,1758055874751,-1109.01,0.00030684,6]
[385813251,1758055874761,-400.0,0.00030684,6]
[385813252,1758055874770,-400.0,0.00030684,6]
[385813253,1758055874780,-400.0,0.00030684,6]
[385813254,1758055874790,-1132.05,0.00030684,6]
[385813255,1758055874799,-1010.91,0.00030684,6]
[385813256,1758055874810,-449.54,0.00030684,6]
[385813257,1758055874820,-662.74,0.00030684,6]
[385813258,1758055874829,-400.0,0.00030684,6]
[385813259,1758055874839,-648.06,0.00030684,6]
[385813260,1758055874849,-533.65,0.00030684,6]
[385813261,1758055874859,-400.0,0.00030684,6]
[385813262,1758055874868,-400.0,0.00030684,6]
[385813263,1758055874878,-400.0,0.00030684,6]
[385813264,1758055874888,-400.0,0.00030684,6]
[385813265,1758055874898,-1125.68,0.00030684,6]
[385813266,1758055874908,-539.15,0.00030684,6]
[385813267,1758055874920,-400.0,0.00030684,6]
[385813268,1758055874930,-400.0,0.00030684,6]
[385813269,1758055874939,-493.22,0.00030684,6]
[385813270,1758055874949,-400.0,0.00030684,6]
[385813271,1758055874958,-624.32,0.00030684,6]
[385813272,1758055874968,-589.24,0.00030684,6]
[385813273,1758055874980,-400.0,0.00030684,6]
[385813274,1758055874992,-1260.04,0.00030684,6]
[385813275,1758055875001,-798.32,0.00030684,6]
[385813276,1758055875011,-400.0,0.00030684,6]
[385813277,1758055875022,-400.0,0.00030684,6]
[385813278,1758055875031,-576.24,0.00030684,6]
[385813279,1758055875040,-623.88,0.00030684,6]
[385813280,1758055875050,-276.5887664,0.00030684,6]
[385813281,1758055875060,-400.0,0.00030684,6]
[385813282,1758055875069,-483.13,0.00030684,6]
[385813283,1758055875080,-540.9,0.00030684,6]
[385813284,1758055875090,-1873.62,0.00030684,6]
[385813285,1758055875101,-400.0,0.00030684,6]
[385813286,1758055875111,-400.0,0.00030684,6]
[385813287,1758055875120,-619.08,0.00030684,6]
[385813288,1758055875130,-483.51,0.00030684,6]
[385813289,1758055875139,-400.0,0.00030684,6]
[385813290,1758055875148,-684.05,0.00030684,6]
[385813291,1758055875157,-3866.02,0.00030684,6]
[385813292,1758055875167,-1080.44,0.00030684,6]
[385813293,1758055875176,-832.27,0.00030684,6]
[385813294,1758055875186,-400.0,0.00030684,6]
[385813295,1758055875196,-400.0,0.00030684,6]
[385813296,1758055875208,-400.0,0.00030684,6]
[385813297,1758055875217,-400.0,0.00030684,6]
[385813298,1758055875228,-400.0,0.00030684,6]
[385813299,1758055875237,-400.0,0.00030684,6]
[385813300,1758055875247,-400.0,0.00030684,6]
[385813301,1758055875257,-400.0,0.00030684,6]
[385813302,1758055875266,-407.81183124,0.00030684,6]
[385813303,1758055875276,-539.06,0.00030684,6]
[385813304,1758055875287,-400.0,0.00030684,6]
[385813305,1758055875296,-400.0,0.00030684,6]
[385813306,1758055875306,-603.43,0.00030684,6]
[385813307,1758055875316,-400.0,0.00030684,6]
[385813308,1758055875325,-674.22,0.00030684,6]
[385813309,1758055875336,-881.46,0.00030684,6]
[385813310,1758055875347,-416.64,0.00030684,6]
[385813311,1758055875356,-400.0,0.00030684,6]
[385813312,1758055875365,-456.38,0.00030684,6]
[385813313,1758055875375,-594.86,0.00030684,6]
[385813314,1758055875384,-500.02,0.00030684,6]
[385813315,1758055875393,-416.47,0.00030684,6]
[385813316,1758055875403,-863.73,0.00030684,6]
[385813317,1758055875413,-4462.76,0.00030684,6]
[385813318,1758055875422,-400.0,0.00030684,6]
[385813319,1758055875431,-691.5,0.00030684,6]
[385813320,1758055875440,-820.55,0.00030684,6]
[385813321,1758055875450,-400.0,0.00030684,6]
[385813322,1758055875461,-400.0,0.00030684,6]
[385813323,1758055875471,-400.0,0.00030684,6]
[385813324,1758055875481,-934.84,0.00030684,6]
[385813325,1758055875490,-400.0,0.00030684,6]
[385813326,1758055875499,-1000.0,0.00030684,6]
[385813327,1758055875509,-400.0,0.00030684,6]
[385813328,1758055875518,-400.0,0.00030684,6]
[385813329,1758055875527,-400.0,0.00030684,6]
[385813330,1758055875537,-423.92,0.00030684,6]
[385813331,1758055875547,-559.15,0.00030684,6]
[385813332,1758055875556,-400.0,0.00030684,6]